[Event "Early-Titled-Tuesday-Blitz-January-23-2024"]
[Site "Chess.com"]
[Date "2024.01.23"]
[Round "9"]
[White "tusplingher"]
[Black "NovozhilovSemen"]
[Result "1-0"]
[WhiteElo "2514"]
[BlackElo "2643"]
[TimeControl "180+1"]
[EndTime "9:45:06 PST"]
[Termination "tusplingher won by resignation"]

1. e4 {[%clk 0:03:00.9]} 1... c5 {[%clk 0:03:00]} 2. Nf3 {[%clk 0:03:00.2]} 2...
Nc6 {[%clk 0:03:00.5]} 3. Bb5 {[%clk 0:02:59.1]} 3... g6 {[%clk 0:03:00.4]} 4.
Bxc6 {[%clk 0:02:57.2]} 4... bxc6 {[%clk 0:03:00.4]} 5. d4 {[%clk 0:02:47.9]}
5... cxd4 {[%clk 0:03:01.3]} 6. Qxd4 {[%clk 0:02:46.5]} 6... f6 {[%clk
0:03:01.7]} 7. c4 {[%clk 0:02:36.8]} 7... d6 {[%clk 0:03:01.5]} 8. Nc3 {[%clk
0:02:35.5]} 8... Nh6 {[%clk 0:02:57.8]} 9. O-O {[%clk 0:02:30.8]} 9... c5 {[%clk
0:02:56.8]} 10. Qd3 {[%clk 0:02:26.2]} 10... Bg7 {[%clk 0:02:56.4]} 11. Be3
{[%clk 0:02:20.4]} 11... Nf7 {[%clk 0:02:46.4]} 12. Rad1 {[%clk 0:02:16.4]}
12... O-O {[%clk 0:02:44.9]} 13. h3 {[%clk 0:02:12.5]} 13... Qa5 {[%clk
0:02:41]} 14. Nd5 {[%clk 0:01:54.9]} 14... Re8 {[%clk 0:02:21.2]} 15. Bd2 {[%clk
0:01:54.1]} 15... Qd8 {[%clk 0:02:20.6]} 16. Bc3 {[%clk 0:01:49.9]} 16... Bb7
{[%clk 0:02:09.8]} 17. Rfe1 {[%clk 0:01:46.9]} 17... Ne5 {[%clk 0:02:05.4]} 18.
Nxe5 {[%clk 0:01:43.3]} 18... dxe5 {[%clk 0:02:04.6]} 19. Qe3 {[%clk 0:01:39.8]}
19... Qc8 {[%clk 0:02:00.1]} 20. Ba5 {[%clk 0:01:36.8]} 20... Rb8 {[%clk
0:01:28.5]} 21. Nc7 {[%clk 0:01:31.5]} 21... Rf8 {[%clk 0:01:28.2]} 22. Qxc5
{[%clk 0:01:28.2]} 22... Rf7 {[%clk 0:01:28.3]} 23. Rd2 {[%clk 0:01:11.9]} 23...
e6 {[%clk 0:01:26.4]} 24. Qd6 {[%clk 0:00:52.9]} 24... Bh6 {[%clk 0:01:12.6]}
25. Rd3 {[%clk 0:00:47.8]} 25... Kh8 {[%clk 0:00:36.8]} 26. Nxe6 {[%clk
0:00:46.3]} 26... Bc6 {[%clk 0:00:26.3]} 27. Nd8 {[%clk 0:00:20.5]} 27... Rd7
{[%clk 0:00:25.4]} 28. Qxc6 {[%clk 0:00:20.8]} 28... Qxc6 {[%clk 0:00:10.1]} 29.
Nxc6 {[%clk 0:00:20.8]} 29... Rxd3 {[%clk 0:00:11]} 30. Nxb8 {[%clk 0:00:20.8]}
1-0

[Event "Early-Titled-Tuesday-Blitz-January-23-2024"]
[Site "Chess.com"]
[Date "2024.01.23"]
[Round "9"]
[White "K_A_S_T_O_R"]
[Black "ChainedDowntohell"]
[Result "1-0"]
[WhiteElo "2890"]
[BlackElo "2590"]
[TimeControl "180+1"]
[EndTime "9:45:09 PST"]
[Termination "K_A_S_T_O_R won on time"]

1. e4 {[%clk 0:03:00.9]} 1... c6 {[%clk 0:02:59.8]} 2. d4 {[%clk 0:02:59.8]}
2... a6 {[%clk 0:02:59.9]} 3. c4 {[%clk 0:02:58.2]} 3... d5 {[%clk 0:02:59]} 4.
cxd5 {[%clk 0:02:58.2]} 4... cxd5 {[%clk 0:02:59.4]} 5. e5 {[%clk 0:02:58.8]}
5... Nc6 {[%clk 0:02:59.1]} 6. Nc3 {[%clk 0:02:50.9]} 6... Bf5 {[%clk
0:02:58.5]} 7. Be3 {[%clk 0:02:43.6]} 7... e6 {[%clk 0:02:58]} 8. Bd3 {[%clk
0:02:40.7]} 8... Nge7 {[%clk 0:02:55.3]} 9. Nge2 {[%clk 0:02:39.2]} 9... h6
{[%clk 0:02:51.9]} 10. Ng3 {[%clk 0:02:36.3]} 10... Bxd3 {[%clk 0:02:50.2]} 11.
Qxd3 {[%clk 0:02:36.5]} 11... Na5 {[%clk 0:02:37.7]} 12. b3 {[%clk 0:02:34]}
12... Nec6 {[%clk 0:02:33.3]} 13. O-O {[%clk 0:02:33.1]} 13... Rc8 {[%clk
0:02:32.1]} 14. f4 {[%clk 0:02:31]} 14... g6 {[%clk 0:02:31.7]} 15. Nge2 {[%clk
0:02:23.2]} 15... h5 {[%clk 0:02:22]} 16. g3 {[%clk 0:02:22.4]} 16... Ba3 {[%clk
0:02:14.8]} 17. Rab1 {[%clk 0:02:16.2]} 17... b5 {[%clk 0:02:06.6]} 18. h3
{[%clk 0:02:09.8]} 18... Qe7 {[%clk 0:01:46.5]} 19. Kg2 {[%clk 0:02:08.4]} 19...
Kd7 {[%clk 0:01:44.8]} 20. Bc1 {[%clk 0:02:03.2]} 20... Rc7 {[%clk 0:01:23.4]}
21. Bxa3 {[%clk 0:01:49.4]} 21... Qxa3 {[%clk 0:01:24.3]} 22. Qd2 {[%clk
0:01:49.7]} 22... Kc8 {[%clk 0:01:09.3]} 23. Rbc1 {[%clk 0:01:45.2]} 23... Kb7
{[%clk 0:01:06.6]} 24. Nb1 {[%clk 0:01:38.7]} 24... Qb4 {[%clk 0:00:57.8]} 25.
Rc3 {[%clk 0:01:38.1]} 25... Rhc8 {[%clk 0:00:52.1]} 26. Rfc1 {[%clk 0:01:37.7]}
26... Qe7 {[%clk 0:00:46.8]} 27. R3c2 {[%clk 0:01:19.9]} 27... Kb6 {[%clk
0:00:36.8]} 28. Kf2 {[%clk 0:01:15]} 28... Na7 {[%clk 0:00:27.3]} 29. Rxc7
{[%clk 0:01:08.2]} 29... Rxc7 {[%clk 0:00:28.2]} 30. Nbc3 {[%clk 0:01:02.6]}
30... Rc6 {[%clk 0:00:20.5]} 31. Nd1 {[%clk 0:00:53.7]} 31... Qa3 {[%clk
0:00:18.7]} 32. Ndc3 {[%clk 0:00:49.4]} 32... Kb7 {[%clk 0:00:10.7]} 33. g4
{[%clk 0:00:45.1]} 33... hxg4 {[%clk 0:00:08.1]} 34. hxg4 {[%clk 0:00:45.6]}
34... b4 {[%clk 0:00:03.3]} 35. Nb1 {[%clk 0:00:43]} 35... Rxc1 {[%clk
0:00:01.5]} 36. Nxc1 {[%clk 0:00:41.3]} 1-0

[Event "Early-Titled-Tuesday-Blitz-January-23-2024"]
[Site "Chess.com"]
[Date "2024.01.23"]
[Round "9"]
[White "Egorov_Pavel"]
[Black "RodokininEV"]
[Result "1-0"]
[WhiteElo "2499"]
[BlackElo "2594"]
[TimeControl "180+1"]
[EndTime "9:45:10 PST"]
[Termination "Egorov_Pavel won by resignation"]

1. d4 {[%clk 0:03:00.9]} 1... Nf6 {[%clk 0:02:56]} 2. c4 {[%clk 0:03:00.9]} 2...
g6 {[%clk 0:02:55.3]} 3. Nc3 {[%clk 0:03:01.2]} 3... Bg7 {[%clk 0:02:55.6]} 4.
e4 {[%clk 0:03:01.7]} 4... d6 {[%clk 0:02:56.2]} 5. Nf3 {[%clk 0:03:02.3]} 5...
O-O {[%clk 0:02:56.4]} 6. Be2 {[%clk 0:03:03]} 6... Bg4 {[%clk 0:02:55.2]} 7.
O-O {[%clk 0:03:03.4]} 7... Nfd7 {[%clk 0:02:55.4]} 8. Be3 {[%clk 0:03:03.6]}
8... Nc6 {[%clk 0:02:54.3]} 9. d5 {[%clk 0:03:01.4]} 9... Bxf3 {[%clk
0:02:54.4]} 10. Bxf3 {[%clk 0:03:00.8]} 10... Na5 {[%clk 0:02:33.6]} 11. Be2
{[%clk 0:02:53.8]} 11... Bxc3 {[%clk 0:02:33.2]} 12. bxc3 {[%clk 0:02:54.7]}
12... e5 {[%clk 0:02:33.2]} 13. dxe6 {[%clk 0:02:39.1]} 13... fxe6 {[%clk
0:02:33]} 14. f4 {[%clk 0:02:39.8]} 14... b6 {[%clk 0:02:13.7]} 15. f5 {[%clk
0:02:36.7]} 15... exf5 {[%clk 0:02:10.9]} 16. exf5 {[%clk 0:02:37.6]} 16... Qe7
{[%clk 0:02:09.5]} 17. Bh6 {[%clk 0:02:29.6]} 17... Rxf5 {[%clk 0:02:04.8]} 18.
Rxf5 {[%clk 0:02:26.5]} 18... gxf5 {[%clk 0:02:05.7]} 19. Bd3 {[%clk 0:02:25.4]}
19... Ne5 {[%clk 0:01:19.2]} 20. Bxf5 {[%clk 0:02:16.2]} 20... Qf7 {[%clk
0:01:15.6]} 21. Be4 {[%clk 0:02:10.2]} 21... c6 {[%clk 0:01:13.3]} 22. Qd2
{[%clk 0:01:57]} 22... Re8 {[%clk 0:00:59.8]} 23. Qg5+ {[%clk 0:01:56.8]} 23...
Ng6 {[%clk 0:00:57.3]} 24. Rf1 {[%clk 0:01:52.8]} 24... Qxf1+ {[%clk 0:00:49.9]}
25. Kxf1 {[%clk 0:01:51.5]} 25... Rxe4 {[%clk 0:00:50.8]} 26. Qd8+ {[%clk
0:01:35.2]} 26... Kf7 {[%clk 0:00:45.9]} 27. Qxd6 {[%clk 0:01:29.5]} 27... Re6
{[%clk 0:00:34.8]} 28. Qd7+ {[%clk 0:01:24]} 28... Ne7 {[%clk 0:00:32.7]} 29.
Bg5 {[%clk 0:01:20.4]} 29... Nxc4 {[%clk 0:00:28.6]} 30. Qd3 {[%clk 0:00:58.9]}
30... h6 {[%clk 0:00:24.4]} 31. Qh7+ {[%clk 0:00:56.6]} 31... Ke8 {[%clk
0:00:21.9]} 32. Bxe7 {[%clk 0:00:57.3]} 32... Rxe7 {[%clk 0:00:21.1]} 33. Qg8+
{[%clk 0:00:57]} 33... Kd7 {[%clk 0:00:17.5]} 34. Qxc4 {[%clk 0:00:57.7]} 34...
Re6 {[%clk 0:00:12.3]} 35. h4 {[%clk 0:00:55.4]} 35... h5 {[%clk 0:00:11.1]} 36.
Qd3+ {[%clk 0:00:53.4]} 36... Ke7 {[%clk 0:00:11.2]} 37. Qh7+ {[%clk 0:00:53.7]}
37... Kd6 {[%clk 0:00:09.2]} 38. Qxh5 {[%clk 0:00:54.4]} 38... c5 {[%clk
0:00:07.7]} 39. Qg5 {[%clk 0:00:52.8]} 39... Re5 {[%clk 0:00:06.4]} 40. Qd8+
{[%clk 0:00:51.2]} 40... Kc6 {[%clk 0:00:06.2]} 41. g4 {[%clk 0:00:49.3]} 41...
Re6 {[%clk 0:00:04.3]} 42. g5 {[%clk 0:00:45.6]} 1-0

[Event "Early-Titled-Tuesday-Blitz-January-23-2024"]
[Site "Chess.com"]
[Date "2024.01.23"]
[Round "9"]
[White "Saraisitave"]
[Black "agvega14"]
[Result "1-0"]
[WhiteElo "2302"]
[BlackElo "2158"]
[TimeControl "180+1"]
[EndTime "9:45:10 PST"]
[Termination "Saraisitave won by resignation"]

1. e4 {[%clk 0:03:00.9]} 1... c5 {[%clk 0:02:56.2]} 2. Nf3 {[%clk 0:03:00]} 2...
a6 {[%clk 0:02:54.7]} 3. Nc3 {[%clk 0:02:58.7]} 3... e6 {[%clk 0:02:54.5]} 4. d4
{[%clk 0:02:58.8]} 4... cxd4 {[%clk 0:02:55.4]} 5. Nxd4 {[%clk 0:02:59.2]} 5...
Qc7 {[%clk 0:02:55.5]} 6. Be2 {[%clk 0:02:59.6]} 6... Nf6 {[%clk 0:02:55.4]} 7.
O-O {[%clk 0:03:00.1]} 7... Nc6 {[%clk 0:02:54.2]} 8. Kh1 {[%clk 0:02:59]} 8...
d6 {[%clk 0:02:47.1]} 9. f4 {[%clk 0:02:58.3]} 9... Be7 {[%clk 0:02:46.7]} 10.
Bf3 {[%clk 0:02:55.7]} 10... Bd7 {[%clk 0:02:44.9]} 11. Be3 {[%clk 0:02:55.7]}
11... Rb8 {[%clk 0:02:43.2]} 12. Qe1 {[%clk 0:02:55.5]} 12... Rc8 {[%clk
0:02:41.5]} 13. Qg3 {[%clk 0:02:54.2]} 13... g6 {[%clk 0:02:38.4]} 14. Rae1
{[%clk 0:02:48.2]} 14... b5 {[%clk 0:01:27.1]} 15. a3 {[%clk 0:02:18.4]} 15...
e5 {[%clk 0:00:39.3]} 16. Nxc6 {[%clk 0:01:49.6]} 16... Bxc6 {[%clk 0:00:38.6]}
17. fxe5 {[%clk 0:01:49.1]} 17... dxe5 {[%clk 0:00:38.8]} 18. Bg5 {[%clk
0:01:38.8]} 18... Ng8 {[%clk 0:00:28.7]} 19. Nd5 {[%clk 0:01:26.6]} 19... Bxd5
{[%clk 0:00:28.6]} 20. exd5 {[%clk 0:01:26.9]} 20... f6 {[%clk 0:00:29.5]} 21.
Bg4 {[%clk 0:01:02.8]} 21... Rd8 {[%clk 0:00:29.1]} 22. Be6 {[%clk 0:00:46]}
22... Qd6 {[%clk 0:00:21.9]} 23. Bd2 {[%clk 0:00:40.5]} 23... Qb6 {[%clk
0:00:18.1]} 24. Bb4 {[%clk 0:00:36.4]} 24... a5 {[%clk 0:00:15.3]} 25. Bxe7
{[%clk 0:00:34.8]} 25... Kxe7 {[%clk 0:00:15]} 26. Rxe5 {[%clk 0:00:24.3]} 26...
fxe5 {[%clk 0:00:13.4]} 27. Qxe5 {[%clk 0:00:24.4]} 27... Nh6 {[%clk 0:00:10.1]}
28. Bc8+ {[%clk 0:00:13.6]} 1-0

[Event "Early-Titled-Tuesday-Blitz-January-23-2024"]
[Site "Chess.com"]
[Date "2024.01.23"]
[Round "9"]
[White "Yeritsyaan"]
[Black "DvaHrasta"]
[Result "0-1"]
[WhiteElo "2643"]
[BlackElo "2464"]
[TimeControl "180+1"]
[EndTime "9:45:11 PST"]
[Termination "DvaHrasta won by resignation"]

1. c4 {[%clk 0:03:00.9]} 1... e5 {[%clk 0:02:59.3]} 2. Nc3 {[%clk 0:03:00.5]}
2... Nf6 {[%clk 0:02:58.9]} 3. e4 {[%clk 0:02:59.3]} 3... Bb4 {[%clk 0:02:54.6]}
4. d3 {[%clk 0:02:58.4]} 4... c6 {[%clk 0:02:48.4]} 5. Bg5 {[%clk 0:02:51.7]}
5... h6 {[%clk 0:02:43]} 6. Bh4 {[%clk 0:02:51.4]} 6... O-O {[%clk 0:02:40.2]}
7. Be2 {[%clk 0:02:48.7]} 7... d5 {[%clk 0:02:38.1]} 8. cxd5 {[%clk 0:02:46.5]}
8... cxd5 {[%clk 0:02:38.1]} 9. exd5 {[%clk 0:02:45]} 9... g5 {[%clk 0:02:31]}
10. Bg3 {[%clk 0:02:44]} 10... Nxd5 {[%clk 0:02:30.6]} 11. Rc1 {[%clk
0:02:40.6]} 11... Nc6 {[%clk 0:02:25]} 12. Nf3 {[%clk 0:02:35.6]} 12... Nf4
{[%clk 0:02:20.6]} 13. O-O {[%clk 0:02:32.1]} 13... Bxc3 {[%clk 0:01:50.2]} 14.
bxc3 {[%clk 0:02:30.3]} 14... Be6 {[%clk 0:01:42.8]} 15. Bxf4 {[%clk 0:02:24.8]}
15... exf4 {[%clk 0:01:37.7]} 16. Qa4 {[%clk 0:02:24.3]} 16... Qa5 {[%clk
0:01:29.1]} 17. Qxa5 {[%clk 0:02:18.7]} 17... Nxa5 {[%clk 0:01:29.1]} 18. c4
{[%clk 0:02:12.4]} 18... Rfe8 {[%clk 0:01:27]} 19. Rfe1 {[%clk 0:02:06.5]} 19...
Rad8 {[%clk 0:01:24.6]} 20. h3 {[%clk 0:01:45.4]} 20... Nc6 {[%clk 0:01:23.7]}
21. Bf1 {[%clk 0:01:42.1]} 21... Kg7 {[%clk 0:01:17.1]} 22. Rb1 {[%clk
0:01:41.1]} 22... b6 {[%clk 0:01:16.3]} 23. Rb5 {[%clk 0:01:34]} 23... f6 {[%clk
0:01:11.9]} 24. a4 {[%clk 0:01:17.2]} 24... h5 {[%clk 0:01:09.7]} 25. c5 {[%clk
0:01:14.6]} 25... g4 {[%clk 0:01:07]} 26. Nd2 {[%clk 0:00:51]} 26... Nd4 {[%clk
0:01:04.1]} 27. Rb4 {[%clk 0:00:48.5]} 27... bxc5 {[%clk 0:01:00.7]} 28. Rb7+
{[%clk 0:00:49.2]} 28... Kg6 {[%clk 0:00:51.3]} 29. Rxa7 {[%clk 0:00:46]} 29...
gxh3 {[%clk 0:00:50.4]} 30. gxh3 {[%clk 0:00:46.7]} 30... Rg8 {[%clk 0:00:46.1]}
31. Kh2 {[%clk 0:00:46.5]} 31... Rb8 {[%clk 0:00:41.4]} 32. Nc4 {[%clk 0:00:42]}
32... Nf3+ {[%clk 0:00:37.1]} 33. Kh1 {[%clk 0:00:42]} 33... Nxe1 {[%clk
0:00:35.3]} 34. Nd2 {[%clk 0:00:36.3]} 34... Bd5+ {[%clk 0:00:33.1]} 35. Kh2
{[%clk 0:00:34.4]} 35... Rb2 {[%clk 0:00:30.6]} 36. Ne4 {[%clk 0:00:31.1]} 36...
Bxe4 {[%clk 0:00:29.3]} 37. dxe4 {[%clk 0:00:32]} 37... Kh6 {[%clk 0:00:27.6]}
0-1

[Event "Early-Titled-Tuesday-Blitz-January-23-2024"]
[Site "Chess.com"]
[Date "2024.01.23"]
[Round "9"]
[White "grzechu96"]
[Black "Statham_01"]
[Result "1-0"]
[WhiteElo "2692"]
[BlackElo "2532"]
[TimeControl "180+1"]
[EndTime "9:45:14 PST"]
[Termination "grzechu96 won by resignation"]

1. e4 {[%clk 0:02:56.8]} 1... e5 {[%clk 0:03:00]} 2. Nf3 {[%clk 0:02:56.8]} 2...
Nf6 {[%clk 0:03:00.6]} 3. d4 {[%clk 0:02:46]} 3... Nxe4 {[%clk 0:02:59.5]} 4.
dxe5 {[%clk 0:02:44.4]} 4... d5 {[%clk 0:02:59.7]} 5. Nbd2 {[%clk 0:02:44.1]}
5... Nc6 {[%clk 0:02:41.6]} 6. Bd3 {[%clk 0:02:26.7]} 6... Bf5 {[%clk
0:02:30.5]} 7. O-O {[%clk 0:02:22.6]} 7... Bc5 {[%clk 0:02:27.3]} 8. Qe2 {[%clk
0:02:13.6]} 8... Nxd2 {[%clk 0:01:59.3]} 9. Bxd2 {[%clk 0:02:14.5]} 9... Bxd3
{[%clk 0:01:53.3]} 10. Qxd3 {[%clk 0:02:15]} 10... Qd7 {[%clk 0:01:49.7]} 11.
Rfe1 {[%clk 0:02:11.6]} 11... O-O-O {[%clk 0:01:48.6]} 12. c3 {[%clk 0:02:07.4]}
12... h6 {[%clk 0:01:35.4]} 13. b4 {[%clk 0:02:06.3]} 13... Bf8 {[%clk
0:01:21.3]} 14. a4 {[%clk 0:02:04.5]} 14... g5 {[%clk 0:01:17.9]} 15. a5 {[%clk
0:02:02.9]} 15... g4 {[%clk 0:01:08.6]} 16. Nd4 {[%clk 0:02:01.1]} 16... Nxd4
{[%clk 0:01:03.4]} 17. Qxd4 {[%clk 0:01:57.4]} 17... Kb8 {[%clk 0:00:37]} 18. e6
{[%clk 0:01:47.9]} 18... fxe6 {[%clk 0:00:23.8]} 19. Qxh8 {[%clk 0:01:47.2]}
19... g3 {[%clk 0:00:16.5]} 20. hxg3 {[%clk 0:01:42]} 20... Bxb4 {[%clk
0:00:16.8]} 21. Qd4 {[%clk 0:01:35.9]} 21... Bd6 {[%clk 0:00:16.8]} 22. Bf4
{[%clk 0:01:32.8]} 22... h5 {[%clk 0:00:11.6]} 23. Bxd6 {[%clk 0:01:32.3]} 23...
cxd6 {[%clk 0:00:11]} 24. Qh4 {[%clk 0:01:25.3]} 24... Rg8 {[%clk 0:00:09.4]}
25. Rab1 {[%clk 0:01:16.2]} 25... e5 {[%clk 0:00:08.5]} 26. Rb4 {[%clk
0:01:06.9]} 26... Qe8 {[%clk 0:00:05.6]} 27. Reb1 {[%clk 0:01:04.1]} 27... b6
{[%clk 0:00:05.8]} 28. axb6 {[%clk 0:01:03.6]} 28... a5 {[%clk 0:00:06.7]} 29.
R4b2 {[%clk 0:00:58.9]} 29... e4 {[%clk 0:00:06.5]} 30. Qf4 {[%clk 0:00:51.2]}
30... Qe6 {[%clk 0:00:06.3]} 31. b7 {[%clk 0:00:47.3]} 31... h4 {[%clk
0:00:06.8]} 32. gxh4 {[%clk 0:00:43.4]} 32... Qg6 {[%clk 0:00:03.2]} 33. g3
{[%clk 0:00:41.2]} 33... a4 {[%clk 0:00:02.5]} 34. Rb6 {[%clk 0:00:40.7]} 34...
e3 {[%clk 0:00:01.8]} 35. Qxd6+ {[%clk 0:00:40.1]} 35... Qxd6 {[%clk 0:00:01.6]}
36. Rxd6 {[%clk 0:00:41]} 36... e2 {[%clk 0:00:02.4]} 37. Re6 {[%clk 0:00:40.5]}
37... a3 {[%clk 0:00:02.8]} 38. Rxe2 {[%clk 0:00:40.6]} 1-0

[Event "Early-Titled-Tuesday-Blitz-January-23-2024"]
[Site "Chess.com"]
[Date "2024.01.23"]
[Round "9"]
[White "Goffredo_Fofi"]
[Black "brm72"]
[Result "1-0"]
[WhiteElo "2552"]
[BlackElo "2680"]
[TimeControl "180+1"]
[EndTime "9:45:15 PST"]
[Termination "Goffredo_Fofi won by checkmate"]

1. e4 {[%clk 0:02:49.6]} 1... c5 {[%clk 0:02:59.7]} 2. d3 {[%clk 0:02:49.1]}
2... Nc6 {[%clk 0:02:58.1]} 3. g3 {[%clk 0:02:49.1]} 3... g6 {[%clk 0:02:58]} 4.
Bg2 {[%clk 0:02:49.5]} 4... Bg7 {[%clk 0:02:58.7]} 5. f4 {[%clk 0:02:50.2]} 5...
d6 {[%clk 0:02:57.4]} 6. Nf3 {[%clk 0:02:50.7]} 6... Nf6 {[%clk 0:02:57.4]} 7.
Nc3 {[%clk 0:02:50.4]} 7... O-O {[%clk 0:02:57.5]} 8. O-O {[%clk 0:02:50]} 8...
Rb8 {[%clk 0:02:57.3]} 9. h3 {[%clk 0:02:50.5]} 9... b5 {[%clk 0:02:56.3]} 10.
Be3 {[%clk 0:02:51]} 10... b4 {[%clk 0:02:55.7]} 11. Ne2 {[%clk 0:02:51.1]}
11... a5 {[%clk 0:02:54.9]} 12. Rb1 {[%clk 0:02:50.9]} 12... a4 {[%clk
0:02:54.4]} 13. b3 {[%clk 0:02:51.4]} 13... axb3 {[%clk 0:02:53.7]} 14. axb3
{[%clk 0:02:52.3]} 14... Bb7 {[%clk 0:02:51]} 15. Qd2 {[%clk 0:02:50.5]} 15...
Ra8 {[%clk 0:02:49.6]} 16. Rf2 {[%clk 0:02:48.1]} 16... Ra2 {[%clk 0:02:41]} 17.
f5 {[%clk 0:02:18.8]} 17... Qa5 {[%clk 0:02:19.1]} 18. Nf4 {[%clk 0:02:04.2]}
18... Ra1 {[%clk 0:02:17.4]} 19. Rxa1 {[%clk 0:01:58.7]} 19... Qxa1+ {[%clk
0:02:18.3]} 20. Kh2 {[%clk 0:01:59.3]} 20... Qb2 {[%clk 0:02:15.1]} 21. g4
{[%clk 0:01:09.7]} 21... Ne5 {[%clk 0:02:10.1]} 22. Nxe5 {[%clk 0:01:06.5]}
22... Qxe5 {[%clk 0:02:08.4]} 23. Kg1 {[%clk 0:01:06.3]} 23... Ra8 {[%clk
0:01:55.6]} 24. Rf1 {[%clk 0:00:48]} 24... Ra1 {[%clk 0:01:53.1]} 25. Rxa1
{[%clk 0:00:45]} 25... Qxa1+ {[%clk 0:01:54]} 26. Qc1 {[%clk 0:00:45.5]} 26...
Qa2 {[%clk 0:01:48.7]} 27. Ne2 {[%clk 0:00:24.4]} 27... Nd7 {[%clk 0:01:44.3]}
28. Qd1 {[%clk 0:00:21.2]} 28... Qb2 {[%clk 0:01:38]} 29. Kf1 {[%clk 0:00:18.1]}
29... Ne5 {[%clk 0:01:36.9]} 30. d4 {[%clk 0:00:16.1]} 30... cxd4 {[%clk
0:01:28]} 31. Bxd4 {[%clk 0:00:17]} 31... Ba6 {[%clk 0:01:24.7]} 32. Bxb2 {[%clk
0:00:16.2]} 32... Nc6 {[%clk 0:01:18]} 33. Bxg7 {[%clk 0:00:15.3]} 33... Kxg7
{[%clk 0:01:18.9]} 34. Kf2 {[%clk 0:00:14.9]} 34... Ne5 {[%clk 0:01:17.2]} 35.
Nd4 {[%clk 0:00:12.6]} 35... Kf6 {[%clk 0:01:14.9]} 36. Qd2 {[%clk 0:00:12.8]}
36... Kg7 {[%clk 0:01:11.2]} 37. g5 {[%clk 0:00:13.1]} 37... Bc8 {[%clk
0:01:08.3]} 38. Qf4 {[%clk 0:00:12.6]} 38... Nd7 {[%clk 0:01:02.9]} 39. Nc6
{[%clk 0:00:11.9]} 39... Kf8 {[%clk 0:00:59.9]} 40. f6 {[%clk 0:00:11.8]} 40...
e5 {[%clk 0:00:58.4]} 41. Qd2 {[%clk 0:00:11.6]} 41... Kg8 {[%clk 0:00:55]} 42.
Ne7+ {[%clk 0:00:10.7]} 42... Kf8 {[%clk 0:00:54.7]} 43. Nxc8 {[%clk 0:00:11.6]}
43... h5 {[%clk 0:00:55.5]} 44. Qxd6+ {[%clk 0:00:10.9]} 44... Kg8 {[%clk
0:00:55.7]} 45. Qxd7 {[%clk 0:00:06.8]} 45... h4 {[%clk 0:00:55.3]} 46. Qe8+
{[%clk 0:00:06.5]} 46... Kh7 {[%clk 0:00:55.1]} 47. Qxf7+ {[%clk 0:00:06.9]}
47... Kh8 {[%clk 0:00:55.3]} 48. Qg7# {[%clk 0:00:07.8]} 1-0

[Event "Early-Titled-Tuesday-Blitz-January-23-2024"]
[Site "Chess.com"]
[Date "2024.01.23"]
[Round "9"]
[White "C_K_G"]
[Black "dmosesov"]
[Result "0-1"]
[WhiteElo "2124"]
[BlackElo "2590"]
[TimeControl "180+1"]
[EndTime "9:45:17 PST"]
[Termination "dmosesov won on time"]

1. e4 {[%clk 0:02:57.2]} 1... Nf6 {[%clk 0:02:59.9]} 2. Nc3 {[%clk 0:02:56.6]}
2... d5 {[%clk 0:03:00]} 3. exd5 {[%clk 0:02:57]} 3... Nxd5 {[%clk 0:03:00.9]}
4. Nxd5 {[%clk 0:02:57.3]} 4... Qxd5 {[%clk 0:03:01]} 5. d4 {[%clk 0:02:55.9]}
5... Nc6 {[%clk 0:02:55.8]} 6. c3 {[%clk 0:02:54.3]} 6... e5 {[%clk 0:02:52.7]}
7. Nf3 {[%clk 0:02:50.4]} 7... exd4 {[%clk 0:02:46.4]} 8. Be3 {[%clk 0:02:33.9]}
8... Bg4 {[%clk 0:02:34]} 9. Be2 {[%clk 0:02:25.9]} 9... O-O-O {[%clk
0:02:29.4]} 10. cxd4 {[%clk 0:01:54.1]} 10... Bb4+ {[%clk 0:02:26.5]} 11. Kf1
{[%clk 0:01:53.9]} 11... Rhe8 {[%clk 0:02:08.4]} 12. a3 {[%clk 0:01:45.5]} 12...
Ba5 {[%clk 0:02:07.9]} 13. Qa4 {[%clk 0:01:38]} 13... Bb6 {[%clk 0:01:44.2]} 14.
Rc1 {[%clk 0:01:32.3]} 14... Qa5 {[%clk 0:01:14.3]} 15. Qd1 {[%clk 0:01:13.4]}
15... Bxf3 {[%clk 0:01:07.4]} 16. Bxf3 {[%clk 0:01:13]} 16... Nxd4 {[%clk
0:01:07.9]} 17. b4 {[%clk 0:00:27.3]} 17... Qxa3 {[%clk 0:01:00.7]} 18. Bxd4
{[%clk 0:00:23.3]} 18... Rxd4 {[%clk 0:01:01.6]} 19. Qc2 {[%clk 0:00:18.2]}
19... Qxb4 {[%clk 0:00:55.5]} 20. g3 {[%clk 0:00:14.9]} 20... Rd2 {[%clk
0:00:50.3]} 21. Qf5+ {[%clk 0:00:14.9]} 21... Kb8 {[%clk 0:00:50.9]} 22. Kg2
{[%clk 0:00:15.3]} 22... Rxf2+ {[%clk 0:00:50.9]} 23. Kh3 {[%clk 0:00:15.9]}
23... g6 {[%clk 0:00:45.4]} 24. Qd5 {[%clk 0:00:15.1]} 24... c6 {[%clk
0:00:42.7]} 25. Qd7 {[%clk 0:00:14.7]} 25... Rd8 {[%clk 0:00:39.2]} 26. Qxf7
{[%clk 0:00:14.7]} 26... Rf8 {[%clk 0:00:37.4]} 27. Qd7 {[%clk 0:00:06]} 27...
R2xf3 {[%clk 0:00:37.7]} 28. Rhe1 {[%clk 0:00:04.6]} 28... a5 {[%clk 0:00:32.4]}
29. Re7 {[%clk 0:00:04.2]} 29... Bd8 {[%clk 0:00:28]} 30. Re8 {[%clk 0:00:01.2]}
30... Rxe8 {[%clk 0:00:26.5]} 31. Qxe8 {[%clk 0:00:02.1]} 31... Qd6 {[%clk
0:00:27.2]} 0-1